Workbook

Sheet SERVIÇOS
I2: ANEXO I
A7: SERVIÇO: EXECUÇÃO DAS OBRAS E SERVIÇOS RELATIVOS AO SISTEMA DE ESGOTAMENTO SANITÁRIO DE IPUBÍ, NO ESTADO DE PERNAMBUCO
A8: ANÁLISE FINANCEIRA DA PROPOSTA DA EMPRESA CONSTRUTORA LUCAIA LTDA. DO LOTE 2, EDITAL 98/2008
A9: LOCAL: MUNICÍPIO DE IPUBÍ, NO ESTADO DE PERNAMBUCO | N9: VALOR: R$ | O9: 11198139.17 | P9: VALOR: R$ | Q9: =I14+I23+I63+I85+I124 -> 7929433.86
A10: PLANILHA ORÇAMENTÁRIA | J10: VARIAÇAO % DOS PREÇOS UNITÁRIOS
F11: CODEVASF | H11: PROPOSTA ORIGINAL | K11: APÓS READEQUAÇAO
A12: ITEM | B12: COD | C12: DISCRIMINAÇÃO DOS SERVIÇOS | D12: UNID. | E12: QUANT. | F12: PREÇO (R$) | H12: UNITÁRIO | I12: TOTAL | K12: UNITÁRIO | L12: TOTAL
F13: UNITÁRIO | G13: TOTAL
A14: 1.1 | C14: INSTALAÇÕES PRELIMINARES E CANTEIRO DE OBRAS | G14: 661794.84 | I14: =SUM(I16:I21) -> 1775609.51 | L14: =SUM(L16:L21) -> 649057.33
A16: 1.1.1 | B16: 01.02-A | C16: Mobilização de equipamento e pessoas | D16: vb | E16: 1 | F16: 25736 | G16: 25736 | H16: 25734.67 | I16: =ROUND(E16*H16,2) -> 25734.67 | J16: =(H16/F16)-1 -> -5.167858253e-05 | K16: =IF(J16>0,F16,H16) -> 25734.67 | L16: =ROUND(E16*K16,2) -> 25734.67
A17: 1.1.2 | B17: 01.03-A | C17: Desmobilização de equipamentos e pessoas | D17: vb | E17: 1 | F17: 25736 | G17: 25736 | H17: 13000 | I17: 13000 | J17: -0.4948709978 | K17: 13000 | L17: 13000
A18: 1.1.3 | B18: 01.05-A | C18: Instalação de canteiro de obras | D18: m² | E18: 250 | F18: 207.71 | G18: 51927.5 | H18: 343.23 | I18: 85807.5 | J18: 0.6524481248 | K18: 207.71 | L18: 51927.5
A19: 1.1.4 | B19: 01.01-A | C19: Administração local e Manutenção de canteiro de obras | D19: mês | E19: 18 | F19: 26338.79 | G19: 474098.22 | H19: 87042.8 | I19: 1566770.4 | J19: 2.304737993 | K19: 26338.79 | L19: 474098.22
A20: 1.1.5 | B20: 07.08 | C20: Placa de identificação de obra- Forneciemento e instalação | D20: m² | E20: 24 | F20: 229.93 | G20: 5518.32 | H20: 229.93 | I20: 5518.32 | J20: 0 | K20: 229.93 | L20: 5518.32
A21: 1.1.6 | B21: 01.04-A | C21: Fornecimento de veículo 4x4, com ar condicionado para apoio à fiscalização, incluindo despesas com combustível, óleos, manutenção, licenciamento, seguros, impostos, etc. | D21: mês | E21: 18 | F21: 4376.6 | G21: 78778.8 | H21: 4376.59 | I21: 78778.62 | J21: -2.284878673e-06 | K21: 4376.59 | L21: 78778.62
A23: 1.2 | C23: REDE COLETORA / LINHA DE RECALQUE / EMISSÁRIO FINAL | G23: 4172162.34 | I23: =SUM(I25:I62) -> 2779918.88 | L23: =SUM(L25:L62) -> 2430690.66
A24: 1.2.1 | C24: LOCAÇÃO | G24: 37317.49
A25: 1.2.1.1 | B25: 07.01 | C25: Locação de rede e elaboração de nota serviço, inclusive levantamento de normais - para obras | D25: m | E25: 17197 | F25: 2.17 | G25: 37317.49 | H25: 0.43 | I25: 7394.71 | J25: =(H25/F25)-1 -> -0.801843318 | K25: =IF(J25>0,F25,H25) -> 0.43 | L25: =ROUND(E25*K25,2) -> 7394.71
A26: 1.2.2 | C26: CADASTRO | G26: 3438.8
A27: 1.2.2.1 | B27: 07.04 | C27: Cadastro de rede de distribuíção | D27: m | E27: 17.2 | F27: 199.93 | G27: 3438.8 | H27: 199.88 | I27: 3437.94 | J27: -0.0002500875306 | K27: =IF(J27>0,F27,H27) -> 199.88 | L27: 3437.94
A28: 1.3.1 | C28: ESCAVAÇÃO EM VALAS | G28: 1548085.63
A29: 1.3.1.1 | B29: 02.02.06 | C29: Escavação mecânica de valas (solo seco) primeira e segunda , profundidade até 1,50 m | D29: m³ | E29: 4470.2 | F29: 5.44 | G29: 24317.89 | H29: 12.77 | I29: 57084.45 | J29: 1.347426471 | K29: =IF(J29>0,F29,H29) -> 5.44 | L29: 24317.89
A30: 1.3.1.2 | B30: 02.02.07 | C30: Escavação mecânica de valas (solo seco) primeira e segunda, profundidade maior que 1,50 até 4,0m | D30: m³ | E30: 12978.79 | F30: 7.38 | G30: 95783.47 | H30: 13.04 | I30: 169243.42 | J30: 0.7669376694 | K30: 7.38 | L30: 95783.47
A31: 1.3.1.4 | B31: 02.02.08 | C31: Escavação mecânica de valas (solo seco), profundidade maior que 4,0 até 6,0m | D31: m³ | E31: 25.96 | F31: 9.33 | G31: 242.21 | H31: 13.23 | I31: 343.45 | J31: 0.4180064309 | K31: 9.33 | L31: 242.21
A32: 1.3.1.5 | B32: 02.02.02 | C32: Escavação e carga mecânica de valas, rocha branda, à frio | D32: m³ | E32: 5898.44 | F32: 104.85 | G32: 618451.43 | H32: 64.39 | I32: 379800.55 | J32: -0.385884597 | K32: 64.39 | L32: 379800.55
B33: 02.02.03 | C33: Escavação e carga mecânica de valas, em rocha branda, à fogo inclusive abafamento | D33: m³ | E33: 1888.83 | F33: 159.28 | G33: 300852.84 | H33: 159.28 | I33: 300852.84 | J33: 0 | K33: 159.28 | L33: 300852.84
A34: 1.3.1.6 | B34: 09.01.01 | C34: Lastro de areia | D34: m³ | E34: 7468.18 | F34: 66.63 | G34: 497604.83 | H34: 17.17 | I34: 128228.65 | J34: -0.7423082695 | K34: 17.17 | L34: 128228.65
A35: 1.3.1.7 | B35: 05.09 | C35: Acerto e verificação do nivelamento de fundo de valas | D35: m³ | E35: 3461.01 | F35: 3.13 | G35: 10832.96 | H35: 3.13 | I35: 10832.96 | J35: 0 | K35: 3.13 | L35: 10832.96
A36: 1.3.2 | C36: ATERRO/REATERRO | E36: 0 | G36: 330742.11 | L36: 0
A37: 1.3.2.1 | B37: 05.01 | C37: Aterro de valas e cavas de fundação, c/ avaliação visual da compactação | D37: m³ | E37: 10702.13 | F37: 8.57 | G37: 91717.25 | H37: 14.05 | I37: 150364.93 | J37: 0.6394399067 | K37: =IF(J37>0,F37,H37) -> 8.57 | L37: 91717.25
A38: 1.3.2.2 | B38: 05.12 | C38: Aterro de valas e cavas de fundação, c/ avaliação visual da compactação com material importado | D38: m³ | E38: 6489.95 | F38: 36.83 | G38: 239024.86 | H38: 17.17 | I38: 111432.44 | J38: -0.5338039642 | K38: 17.17 | L38: 111432.44
A39: 1.3.3 | C39: POÇOS E CAIXAS (INCLUSIVE ASSENTAMENTO DE TAMPÃO) | G39: 203692.16
A40: 1.3.3.1 | B40: 16.04.01.08 | C40: Poço de visita altura igual 1,50 m (balão diâmetro igual 1,0 m), em anéis pré-moldado de concreto | D40: und | E40: 292 | F40: 670.98 | G40: 195926.16 | H40: 670.98 | I40: 195926.16 | J40: 0 | K40: 670.98 | L40: 195926.16
A41: 1.3.3.2 | B41: 16.04.01.12 | C41: Adicional de preço para acréscimo na altura de poço de visita em anéis pré-moldado de concreto (balão diâmetro igual 0,6 m) | D41: m | E41: 50 | F41: 155.32 | G41: 7766 | H41: 155.12 | I41: 7756 | J41: -0.001287664177 | K41: 155.12 | L41: 7756
A42: 1.4.1 | C42: ASSENTAMENTO DE TUBOS E CONEXÕES EM PVC, JUNTA ELÁSTICA | G42: 45613.39
B43: 16.06.03.01.03 | C43: Assentamento de tubos e conexões de PVC JE DN 100 | D43: m | E43: 144 | F43: 1.65 | G43: 237.6 | H43: 1.31 | I43: 188.64 | J43: -0.2060606061 | K43: 1.31 | L43: 188.64
A44: 1.4.1.1 | B44: 16.06.03.01.04 | C44: Assentamento de tubos e conexões de PVC JE DN 150 | D44: m | E44: 15549 | F44: 2.63 | G44: 40893.87 | H44: 3 | I44: 46647 | J44: 0.1406844106 | K44: 2.63 | L44: 40893.87
A45: 1.4.1.2 | B45: 16.06.03.01.05 | C45: Assentamento de tubos e conexões de PVC JE DN 200 | D45: m | E45: 1504 | F45: 2.98 | G45: 4481.92 | H45: 3.07 | I45: 4617.28 | J45: 0.03020134228 | K45: 2.98 | L45: 4481.92
A46: 1.5.1 | C46: RETIRADA DE PAVIMENTAÇÃO | G46: 126227.98
A47: 1.5.1.1 | B47: 01.03.11 | C47: Remoção de pavimento em paralelepípedo, poliédrico e pré-moldado | D47: m² | E47: 17305.05 | F47: 5.74 | G47: 99330.99 | H47: 5.73 | I47: 99157.94 | J47: -0.001742160279 | K47: 5.73 | L47: 99157.94
A48: 1.5.1.2 | B48: 01.01.11 | C48: Demolição de pavimento asfáltico, faixas menores ou iguais a 2,0 m | D48: m² | E48: 4944.3 | F48: 5.44 | G48: 26896.99 | H48: 5.42 | I48: 26798.11 | J48: -0.003676470588 | K48: 5.42 | L48: 26798.11
A49: 1.5.2 | C49: RECOMPOSIÇÃO DE PAVIMENTAÇÃO | G49: 1145643.76 | L49: 0
A50: 1.5.2.1 | B50: 14.02.28 | C50: Recomposição de pavimento em paralelepípedo, com reaproveitamento do material demolido, exclusive base com pequena perda inclusa | D50: m² | E50: 4944.3 | F50: 11.35 | G50: 56117.81 | H50: 7.15 | I50: 35351.75 | J50: -0.3700440529 | K50: 7.15 | L50: 35351.75
A51: 1.5.2.2 | B51: 14.02.03 | C51: Pavimentação asfáltica em C.B.U.Q, inclusive base de minério espessura 20 cm e capa de 5 cm, para faixa de largura até 3,50 m | D51: m² | E51: 17305.05 | F51: 62.96 | G51: 1089525.95 | H51: 7.79 | I51: 134806.34 | J51: -0.876270648 | K51: 7.79 | L51: 134806.34
A52: 1.6.1 | C52: SINALIZAÇÃO | G52: 17984
A53: 1.6.1.1 | B53: 07.15 | C53: Travessia de veículos contínua, em chapa metálica em aço - Fornecimento e movimentação | D53: m²/dia | E53: 1700 | F53: 4.46 | G53: 7582 | H53: 4.45 | I53: 7565 | J53: -0.002242152466 | K53: 4.45 | L53: 7565
A54: 1.6.1.2 | B54: 07.10 | C54: Conjunto de tripê, suporte e bandeirola - Fornecimento e movimentação | D54: un/dia | E54: 3200 | F54: 0.96 | G54: 3072 | H54: 0.96 | I54: 3072 | J54: 0 | K54: 0.96 | L54: 3072
A55: 1.6.1.3 | B55: 07.11 | C55: Cones de sinalização - Fornecimento e movimentação | D55: un/dia | E55: 6500 | F55: 0.6 | G55: 3900 | H55: 0.59 | I55: 3835 | J55: -0.01666666667 | K55: 0.59 | L55: 3835
A56: 1.6.1.4 | B56: 07.13 | C56: Sinalização noturna - Fornecimento e instalação | D56: un/dia | E56: 3500 | F56: 0.98 | G56: 3430 | H56: 0.98 | I56: 3430 | J56: 0 | K56: 0.98 | L56: 3430
A57: 1.6.2 | C57: ESCORAMENTO | G57: 710672.02
A58: 1.6.2.1 | B58: 02.04.02 | C58: Escoramento descontínuo | D58: m² | E58: 19777 | F58: 10.89 | G58: 215371.53 | H58: 14.04 | I58: 277669.08 | J58: 0.2892561983 | K58: 10.89 | L58: 215371.53
A59: 1.6.2.2 | B59: 02.04.03 | C59: Estrutura de escoramento contínua | D59: m² | E59: 9808.6 | F59: 22.4 | G59: 219712.64 | H59: 26.4 | I59: 258947.04 | J59: 0.1785714286 | K59: 22.4 | L59: 219712.64
A60: 1.6.2.3 | B60: 02.04.01 | C60: Estrutura de escoramento, tipo pontaleteamento | D60: m² | E60: 29665 | F60: 9.29 | G60: 275587.85 | H60: 11.88 | I60: 352420.2 | J60: 0.2787944026 | K60: 9.29 | L60: 275587.85
A61: 1.6.3 | C61: ESGOTAMENTO | G61: 2745
A62: 1.6.3.1 | B62: 04.01 | C62: Esgotamento de água com bombas, vazões até 15/m³, altura até 10m | D62: hpxh | E62: 1500 | F62: 1.83 | G62: 2745 | H62: 1.81 | I62: 2715 | J62: -0.01092896175 | K62: 1.81 | L62: 2715
A63: 2 | C63: LIGAÇÃO PREDIAL | G63: 1610478.28 | I63: =SUM(I65:I102) -> 1580973.28 | L63: =SUM(L65:L84) -> 1012619.96
A64: 2.2 | C64: SERVIÇOS
A65: 2.2.1 | C65: LIGAÇÕES PREDIAIS DE ESGOTO | G65: 1610478.28
A66: 2.2.1.1 | B66: 07.01 | C66: Locação de rede e elaboração de nota serviço, inclusive levantamento de normais - para obras | D66: m | E66: 32315 | F66: 2.17 | G66: 70123.55 | H66: 0.43 | I66: 13895.45 | J66: =(H66/F66)-1 -> -0.801843318 | K66: =IF(J66>0,F66,H66) -> 0.43 | L66: =ROUND(E66*K66,2) -> 13895.45
A67: 2.2.1.2 | B67: 07.04 | C67: Cadastro de rede de distribuíção | D67: m | E67: 32.32 | F67: 199.93 | G67: 6461.74 | H67: 199.88 | I67: 6460.12 | J67: -0.0002500875306 | K67: 199.88 | L67: 6460.12
A68: 2.2.1.3 | B68: 01.03.11 | C68: Remoção de pavimento em paralelepípedo, poliédrico e pré-moldado | D68: m² | E68: 458 | F68: 5.74 | G68: 2628.92 | H68: 5.73 | I68: 2624.34 | J68: -0.001742160279 | K68: 5.73 | L68: 2624.34
A69: 2.2.1.5 | B69: 02.01.03 | C69: Escavação manual de valas em solo seco profundidade até 1,50 m | D69: m³ | E69: 8143.38 | F69: 18.7 | G69: 152281.21 | H69: 29.84 | I69: 242998.46 | J69: 0.5957219251 | K69: 18.7 | L69: 152281.21
A70: 2.2.1.6 | B70: 02.02.02 | C70: Escavação e carga mecânica de valas, rocha branda, à frio | D70: m³ | E70: 904.82 | F70: 104.85 | G70: 94870.38 | H70: 64.39 | I70: 58261.36 | J70: -0.385884597 | K70: 64.39 | L70: 58261.36
A71: 2.2.1.7 | B71: 09.01.01 | C71: Lastro de areia | D71: m³ | E71: 2585.2 | F71: 66.63 | G71: 172251.88 | H71: 17.17 | I71: 44387.88 | J71: -0.7423082695 | K71: 17.17 | L71: 44387.88
A72: 2.2.1.8 | B72: 05.09 | C72: Acerto e verificação do nivelamento de fundo de valas | D72: m³ | E72: 1292.6 | F72: 3.13 | G72: 4045.84 | H72: 3.13 | I72: 4045.84 | J72: 0 | K72: 3.13 | L72: 4045.84
A73: 2.2.1.9 | B73: 05.01 | C73: Aterro de valas e cavas de fundação, c/ avaliação visual da compactação | D73: m³ | E73: 821.34 | F73: 8.57 | G73: 7038.88 | H73: 14.05 | I73: 11539.83 | J73: 0.6394399067 | K73: 8.57 | L73: 7038.88
A74: 2.2.1.10 | B74: 05.12 | C74: Aterro de valas e cavas de fundação, c/ avaliação visual da compactação com material importado | D74: m³ | E74: 2057.2 | F74: 36.83 | G74: 75766.68 | H74: 17.17 | I74: 35322.12 | J74: -0.5338039642 | K74: 17.17 | L74: 35322.12
B75: 01.01.10 | C75: Demolição de passeio cimentado | D75: m² | E75: 11633.4 | F75: 6.91 | G75: 80386.79 | H75: 2.59 | I75: 30130.51 | J75: -0.6251808973 | K75: 2.59 | L75: 30130.51
B76: 01.01.14 | C76: Demolição de piso cerâmico | D76: m² | E76: 7755.6 | F76: 5.11 | G76: 39631.12 | H76: 3.9 | I76: 30246.84 | J76: -0.2367906067 | K76: 3.9 | L76: 30246.84
A77: 2.2.1.11 | B77: 14.02.36 | C77: Recomposição de calçada e parede em ligações condominiais | D77: m² | E77: 3505 | F77: 6.72 | G77: 23553.6 | H77: 3.91 | I77: 13704.55 | J77: -0.4181547619 | K77: 3.91 | L77: 13704.55
A78: 2.2.1.12 | B78: 14.01.04 | C78: Piso de ladrilho cerâmico liso tipo A assentada com argamassa pré-fabricada | D78: m² | E78: 7755.6 | F78: 38.63 | G78: 299598.83 | H78: 19.59 | I78: 151932.2 | J78: -0.4928811804 | K78: 19.59 | L78: 151932.2
A79: 2.2.1.13 | B79: 14.01.05 | C79: Contra-piso de cimento e areia e=5cm | D79: m² | E79: 7755.6 | F79: 11.89 | G79: 92214.08 | H79: 7.2 | I79: 55840.32 | J79: -0.3944491169 | K79: 7.2 | L79: 55840.32
A80: 2.2.1.14 | B80: 14.01.07 | C80: Piso cimentado rústico | D80: m² | E80: 11633.4 | F80: 13.87 | G80: 161355.26 | H80: 7.83 | I80: =ROUND(E80*H80,2) -> 91089.52 | J80: -0.4354722422 | K80: 7.83 | L80: 91089.52
A81: 2.2.1.16 | B81: 14.02.28 | C81: Recomposição de pavimento em paralelepípedo, com reaproveitamento do material demolido, exclusive base com pequena perda inclusa | D81: m² | E81: 458 | F81: 11.35 | G81: 5198.3 | H81: 7.15 | I81: =ROUND(E81*H81,2) -> 3274.7 | J81: -0.3700440529 | K81: 7.15 | L81: 3274.7
A82: 2.2.1.17 | B82: 17.02.01.08 | C82: Caixa de passagem em anel concreto armado pré-mold. DN = 0,40 Prof. H = 0,40 mc/tampa em concreto armado | D82: un | E82: 3231 | F82: 76.17 | G82: 246105.27 | H82: 85.02 | I82: =ROUND(E82*H82,2) -> 274699.62 | J82: 0.1161874754 | K82: 76.17 | L82: 246105.27
A83: 2.2.1.18 | B83: 17.02.01.10 | C83: Caixa de passagem em anel concreto armado pré-mold. DN = 0,40 Prof. H = 0,60 mc/tampa em concreto armado | D83: un | E83: 274 | F83: 86.3 | G83: 23646.2 | H83: 111.33 | I83: =ROUND(E83*H83,2) -> 30504.42 | J83: 0.2900347625 | K83: 86.3 | L83: 23646.2
A84: 2.2.1.19 | B84: 16.06.03.01.03 | C84: Assentamento de tubos e conexões de PVC JE DN 100 | D84: m | E84: 32315 | F84: 1.65 | G84: 53319.75 | H84: 1.31 | I84: =ROUND(E84*H84,2) -> 42332.65 | J84: -0.2060606061 | K84: 1.31 | L84: 42332.65
A85: 3 | C85: ESTAÇÃO ELEVATÓRIAS | G85: 234655.37 | I85: =SUM(I87:I123) -> 228713.12 | L85: =SUM(L87:L123) -> 219919.61
A86: 3.2 | C86: SERVIÇOS
A87: 3.2.1 | C87: POÇO DE SUCÇÃO | G87: 211472.35
A88: 3.2.1.1 | B88: 21.02.02 | C88: Limpeza do terreno - Raspagem e limpeza manual | D88: m² | E88: 300 | F88: 1.87 | G88: 561 | H88: 1.5 | I88: =ROUND(E88*H88,2) -> 450 | J88: =(H88/F88)-1 -> -0.1978609626 | K88: =IF(J88>0,F88,H88) -> 1.5 | L88: =ROUND(E88*K88,2) -> 450
A89: 3.2.1.2 | B89: 07.02 | C89: Locação de estruturas - para obras | D89: m² | E89: 300 | F89: 2.26 | G89: 678 | H89: 2.26 | I89: 678 | J89: 0 | K89: 2.26 | L89: 678
A90: 3.2.1.3 | B90: 02.01.01 | C90: Escavação manual em solo primeira e segunda profundidade até 1,50 m | D90: m³ | E90: 400 | F90: 12.47 | G90: 4988 | H90: 29.84 | I90: 11936 | J90: 1.392943063 | K90: 12.47 | L90: 4988
A91: 3.2.1.4 | B91: 05.01 | C91: Aterro de valas e cavas de fundação, c/ avaliação visual da compactação | D91: m³ | E91: 100 | F91: 8.57 | G91: 857 | H91: 14.05 | I91: 1405 | J91: 0.6394399067 | K91: 8.57 | L91: 857
A92: 3.2.1.5 | B92: 09.01.03 | C92: Lastro de concreto simples, consumo mínimo de cimento 150 kg/m³ | D92: m³ | E92: 5 | F92: 260.71 | G92: 1303.55 | H92: 252.73 | I92: 1263.65 | J92: -0.03060872234 | K92: 252.73 | L92: 1263.65
A93: 3.2.1.6 | B93: 09.02.06 | C93: Concreto estrutural (Fck= 40 MPa) - preparo em betoneira | D93: m³ | E93: 100 | F93: 372.71 | G93: 37271 | H93: 372.65 | I93: 37265 | J93: -0.0001609830699 | K93: 372.65 | L93: 37265
A94: 3.2.1.7 | B94: 09.04.15 | C94: Forma curva em chapa de madeira compensada resinada, esp. 10 mm, para estruturas | D94: m² | E94: 1200 | F94: 81 | G94: 97200 | H94: 78.62 | I94: 94344 | J94: -0.02938271605 | K94: 78.62 | L94: 94344
A95: 3.2.1.8 | B95: 09.03.01 | C95: Lançamento ou bombeamento e adensamento de concreto - altura ou profundidade até 1,50 m | D95: m³ | E95: 100 | F95: 93.09 | G95: 9309 | H95: 93.05 | I95: 9305 | J95: -0.0004296916962 | K95: 93.05 | L95: 9305
A96: 3.2.1.9 | B96: 10.02.01 | C96: Armadura de aço CA 50 e CA 60, colocação | D96: kg | E96: 4000 | F96: 1.69 | G96: 6760 | H96: 0.7 | I96: 2800 | J96: -0.5857988166 | K96: 0.7 | L96: 2800
A97: 3.2.1.10 | B97: 10.02.02 | C97: Armadura de aço CA 50, fornecimento e colocação | D97: kg | E97: 6000 | F97: 6.71 | G97: 40260 | H97: 6.25 | I97: 37500 | J97: -0.06855439642 | K97: 6.25 | L97: 37500
A98: 3.2.1.11 | B98: 16.04.01.24 | C98: Anel ou aduela de concreto armado D =1,50 m e H = 0,50 m | D98: und | E98: 10 | F98: 151.17 | G98: 1511.7 | H98: 130.7 | I98: 1307 | J98: -0.135410465 | K98: 130.7 | L98: 1307
A99: 3.2.1.12 | B99: 15.01.01 | C99: Chapiscado comum, com argamassa de cimento e areia | D99: m² | E99: 190 | F99: 3.27 | G99: 621.3 | H99: 2.98 | I99: 566.2 | J99: -0.08868501529 | K99: 2.98 | L99: 566.2
A100: 3.2.1.13 | B100: 15.01.06 | C100: Revestimento impermeável com sika I ou similar | D100: m² | E100: 190 | F100: 29.22 | G100: 5551.8 | H100: 29.21 | I100: 5549.9 | J100: -0.0003422313484 | K100: 29.21 | L100: 5549.9
A101: 3.2.1.14 | C101: Montagem de tubos, conexões e conjuntos elevatórios | D101: cj | E101: 4 | F101: 1150 | G101: 4600 | H101: 1149.92 | I101: 4599.68 | J101: -6.956521739e-05 | K101: 1149.92 | L101: 4599.68
A102: 3.2.2 | C102: CASA DO QUADRO DE COMANDO E DEPÓSITO | G102: 23183.02 | K102: 0 | L102: 0
A103: 3.2.2.1 | B103: 21.02.02 | C103: Limpeza do terreno - Raspagem e limpeza manual | D103: m² | E103: 142 | F103: 1.87 | G103: 265.54 | H103: 1.5 | I103: 213 | J103: =(H103/F103)-1 -> -0.1978609626 | K103: 1.5 | L103: 213
A104: 3.2.2.2 | B104: 07.02 | C104: Locação de estruturas - para obras | D104: m² | E104: 20 | F104: 2.26 | G104: 45.2 | H104: 2.26 | I104: 45.2 | J104: 0 | K104: 2.26 | L104: 45.2
A105: 3.2.2.3 | B105: 02.01.01 | C105: Escavação manual em solo primeira e segunda profundidade até 1,50 m | D105: m³ | E105: 6 | F105: 12.47 | G105: 74.82 | H105: 29.84 | I105: 179.04 | J105: 1.392943063 | K105: 12.47 | L105: 74.82
A106: 3.2.2.4 | B106: 05.01 | C106: Aterro de valas e cavas de fundação, c/ avaliação visual da compactação | D106: m³ | E106: 1.33 | F106: 8.57 | G106: 11.4 | H106: 14.05 | I106: 18.69 | J106: 0.6394399067 | K106: 8.57 | L106: 11.4
A107: 3.2.2.5 | B107: 06.02 | C107: Enrocamento com pedra argamassada | D107: m³ | E107: 5.31 | F107: 266.43 | G107: 1414.74 | H107: 65 | I107: 345.15 | J107: -0.7560334797 | K107: 65 | L107: 345.15
A108: 3.2.2.6 | B108: 11.02.01 | C108: Alvenaria em tijolo cerâmico furado, 8 furos, dimensões 30x20x10cm, esp. 10cm | D108: m² | E108: 49.8 | F108: 29.23 | G108: 1455.65 | H108: 22.5 | I108: 1120.5 | J108: -0.2302429011 | K108: 22.5 | L108: 1120.5
A109: 3.2.2.7 | B109: 15.01.01 | C109: Chapiscado comum, com argamassa de cimento e areia | D109: m² | E109: 116.8 | F109: 3.27 | G109: 381.94 | H109: 2.98 | I109: 348.06 | J109: -0.08868501529 | K109: 2.98 | L109: 348.06
A110: 3.2.2.8 | B110: 15.01.04 | C110: Reboco Paulista | D110: m² | E110: 116.8 | F110: 16.2 | G110: 1892.16 | H110: 13.7 | I110: 1600.16 | J110: -0.1543209877 | K110: 13.7 | L110: 1600.16
A111: 3.2.2.9 | B111: 10.03.03 | C111: Laje pré-moldada para forro (carga 100,0 kg/m²), armada na menor dimensão acima de 3,0 m até 4,0 m | D111: m² | E111: 17.2 | F111: 58.48 | G111: 1005.86 | H111: 53.01 | I111: 911.77 | J111: -0.09353625171 | K111: 53.01 | L111: 911.77
A112: 3.2.2.10 | B112: 14.01.06 | C112: Contra-piso de concreto fcK=15 Mpa e= 10cm | D112: m² | E112: 17.2 | F112: 31.12 | G112: 535.26 | H112: 31.12 | I112: 535.26 | J112: 0 | K112: 31.12 | L112: 535.26
A113: 3.2.2.11 | B113: 14.01.07 | C113: Piso cimentado rústico | D113: m² | E113: 17.2 | F113: 13.87 | G113: 238.56 | H113: 7.83 | I113: 134.68 | J113: -0.4354722422 | K113: 7.83 | L113: 134.68
A114: 3.2.2.12 | B114: 23775.2 | C114: Cobogo concreto PR5-2Q-T 50 X 50 X 6 cm | D114: m² | E114: 2 | F114: 63.93 | G114: 127.86 | H114: 63.87 | I114: 127.74 | J114: -0.0009385265134 | K114: 63.87 | L114: 127.74
A115: 3.2.2.13 | B115: 18.01.05 | C115: Porta em madeira de lei, tipo prancheta, 0,70x2,10 m - fornecimento e assentamento completa | D115: und | E115: 1 | F115: 281.28 | G115: 281.28 | H115: 244.58 | I115: 244.58 | J115: -0.1304749716 | K115: 244.58 | L115: 244.58
A116: 3.2.2.14 | B116: 17.05.01 | C116: Quadro de comando - Instalação em mureta PADRÃO CELPE | D116: und | E116: 1 | F116: 268.21 | G116: 268.21 | H116: 240.54 | I116: 240.54 | J116: -0.1031654301 | K116: 240.54 | L116: 240.54
A117: 3.2.2.15 | B117: 20.09 | C117: Pintura em alvenaria - latex sem massa | D117: m² | E117: 116.8 | F117: 9.39 | G117: 1096.75 | H117: 7.2 | I117: 840.96 | J117: -0.2332268371 | K117: 7.2 | L117: 840.96
A118: 3.2.2.16 | B118: 14.02.38 | C118: Calçada em lajota de concreto 50 x 50 x 5 cm assentada com argamassa cimento e areia, inclusive contenção e aterro | D118: m² | E118: 16.6 | F118: 43.78 | G118: 726.75 | H118: 25.05 | I118: 415.83 | J118: -0.4278209228 | K118: 25.05 | L118: 415.83
A119: 3.2.2.17 | B119: 25.03 | C119: Cerca em mourões de concreto, com fechamento em arame farpado | D119: m | E119: 100 | F119: 27.99 | G119: 2799 | H119: 39.85 | I119: 3985 | J119: 0.4237227581 | K119: 27.99 | L119: 2799
A120: 3.2.2.18 | B120: 25.07 | C120: Portão para veículo | D120: un | E120: 1 | F120: 2209.72 | G120: 2209.72 | H120: 2208.41 | I120: 2208.41 | J120: -0.0005928352913 | K120: 2208.41 | L120: 2208.41
A121: 3.2.2.19 | B121: 25.08 | C121: Portão para pedestre | D121: un | E121: 1 | F121: 766.71 | G121: 766.71 | H121: 578.27 | I121: 578.27 | J121: -0.2457774126 | K121: 578.27 | L121: 578.27
A122: 3.2.2.20 | B122: 14.02.08 | C122: Pavimentação em paralelepípedo, inclusive coxim de areia rejunt. c/arg. 1:2 cim/areia | D122: m² | E122: 131 | F122: 44.04 | G122: 5769.24 | H122: 31.02 | I122: 4063.62 | J122: -0.295640327 | K122: 31.02 | L122: 4063.62
A123: 3.2.2.21 | B123: 14.02.25 | C123: Meio-fio reto de concreto (80 X 45 X 18 X 12) cm (Fornecimento e assentamento). | D123: m | E123: 67 | F123: 27.11 | G123: 1816.37 | H123: 23.69 | I123: 1587.23 | J123: -0.1261527112 | K123: 23.69 | L123: 1587.23
A124: 7 | C124: ESTAÇÃO DE TRATAMENTO DE ESGOTOS | G124: 4519048.34 | I124: =SUM(I126:I171) -> 1564219.07 | L124: =SUM(L126:L171) -> 1392261.18
A125: 7.1 | C125: SERVIÇOS PRELIMINARES - MOVIMENTO DE TERRA | G125: 4234541.99 | L125: 0
A126: 7.1.1 | B126: 07.03 | C126: Locação de áreas para obras | D126: m² | E126: 30000 | F126: 0.31 | G126: 9300 | H126: 0.47 | I126: 14100 | J126: =(H126/F126)-1 -> 0.5161290323 | K126: =IF(J126>0,F126,H126) -> 0.31 | L126: 9300
A127: 7.1.2 | B127: 21.02.01 | C127: Desmatamento e limpeza mecanizada com destocamento até 50 cm | D127: m² | E127: 30000 | F127: 0.87 | G127: 26100 | H127: 1.43 | I127: 42900 | J127: 0.6436781609 | K127: 0.87 | L127: 26100
A128: 7.1.3 | B128: 23.05 | C128: Carga mecânica (material e geral), sem manuseio e arrumação do material | D128: m³ | E128: 6000 | F128: 1.75 | G128: 10500 | H128: 1.74 | I128: 10440 | J128: -0.005714285714 | K128: 1.74 | L128: 10440
A129: 7.1.4 | B129: 23.06 | C129: Descarga de material em geral, a granel, de caminhão basculante | D129: m³ | E129: 6000 | F129: 0.22 | G129: 1320 | H129: 0.22 | I129: 1320 | J129: 0 | K129: 0.22 | L129: 1320
A130: 7.1.5 | B130: 24.02.03 | C130: Transporte local, perímetro urbano (material em geral), a granel | D130: m³.Km | E130: 459360 | F130: 1.38 | G130: 633916.8 | H130: 0.23 | I130: 105652.8 | J130: -0.8333333333 | K130: 0.23 | L130: 105652.8
A131: 7.1.6 | B131: 02.02.12 | C131: Escavação mecânica em material de primeira categoria | D131: m³ | E131: 30624 | F131: 2.53 | G131: 77478.72 | H131: 1.91 | I131: 58491.84 | J131: -0.2450592885 | K131: 1.91 | L131: 58491.84
A132: 7.1.7 | B132: 24.02.03 | C132: Transporte local, perímetro urbano (material em geral), a granel | D132: m³.Km | E132: 245290.2 | F132: 1.38 | G132: 338500.48 | H132: 0.23 | I132: 56416.75 | J132: -0.8333333333 | K132: 0.23 | L132: 56416.75
A133: 7.1.8 | B133: 05.04 | C133: Espalhamento de solo em bota-fora | D133: m³ | E133: 38303.13 | F133: 1.24 | G133: 47495.88 | H133: 1.01 | I133: 38686.16 | J133: -0.185483871 | K133: 1.01 | L133: 38686.16
A134: 7.1.9 | B134: 02.02.12 | C134: Escavação mecânica em material de primeira categoria | D134: m³ | E134: 38303.13 | F134: 2.53 | G134: 96906.92 | H134: 1.91 | I134: 73158.98 | J134: -0.2450592885 | K134: 1.91 | L134: 73158.98
A135: 7.1.10 | B135: 24.02.03 | C135: Transporte local, perímetro urbano (material em geral), a granel | D135: m³.Km | E135: 574546.95 | F135: 1.38 | G135: 792874.79 | H135: 0.23 | I135: 132145.8 | J135: -0.8333333333 | K135: 0.23 | L135: 132145.8
A136: 7.1.11 | B136: 05.10 | C136: ESCARIFICAÇÃO, GRADEAMENTO E COMPACTAÇÃO MECÂNICA DO FUNDO DAS LAGOAS (ESP.= 40 CM EM CAMADAS DE 20 CM) COM GRAU DE COMPACTAÇÃO DE 100 % DO PN | D136: m³ | E136: 21887.7 | F136: 6.59 | G136: 144239.94 | H136: 6.59 | I136: 144239.94 | J136: 0 | K136: 6.59 | L136: 144239.94
A137: 7.1.12 | B137: 02.02.17 | C137: ESCAVAÇÃO MECÂNICA EM ROCHA DURA, À FOGO | D137: m³ | E137: 6394 | F137: 52.8 | G137: 337603.2 | H137: 15.69 | I137: 100321.86 | J137: -0.7028409091 | K137: 15.69 | L137: 100321.86
A138: 7.1.13 | B138: 02.02.18 | C138: ESCAVAÇÃO MECÂNICA EM ROCHA DURA, À FRIO | D138: m³ | E138: 8679.9 | F138: 80.77 | G138: 701075.52 | H138: 13.13 | I138: 113967.09 | J138: -0.8374396434 | K138: 13.13 | L138: 113967.09
A139: 7.1.14 | B139: 06.02 | C139: Enrocamento com pedra argamassada | D139: m³ | E139: 3818 | F139: 266.43 | G139: 1017229.74 | H139: 65 | I139: 248170 | J139: -0.7560334797 | K139: 65 | L139: 248170
A140: 7.2 | C140: TRATAMENTO PRELIMINAR | G140: 110226.43 | K140: 0 | L140: 0
A141: 7.2.1 | B141: 07.02 | C141: Locação de estruturas - para obras | D141: m² | E141: 36 | F141: 2.26 | G141: 81.36 | H141: 2.26 | I141: 81.36 | J141: 0 | K141: 2.26 | L141: 81.36
A142: 7.2.2 | B142: 02.01.01 | C142: Escavação manual em solo primeira e segunda profundidade até 1,50 m | D142: m³ | E142: 9.1 | F142: 12.47 | G142: 113.48 | H142: 29.84 | I142: 271.54 | J142: 1.392943063 | K142: 12.47 | L142: 113.48
A143: 7.2.3 | B143: 05.01 | C143: Aterro de valas e cavas de fundação, c/ avaliação visual da compactação | D143: m³ | E143: 1.86 | F143: 8.57 | G143: 15.94 | H143: 14.05 | I143: 26.13 | J143: 0.6394399067 | K143: 8.57 | L143: 15.94
A144: 7.2.4 | B144: 09.01.03 | C144: Lastro de concreto simples, consumo mínimo de cimento 150 kg/m³ | D144: m³ | E144: 0.81 | F144: 260.71 | G144: 211.18 | H144: 252.73 | I144: 204.71 | J144: -0.03060872234 | K144: 252.73 | L144: 204.71
A145: 7.2.5 | B145: 09.02.06 | C145: Concreto estrutural (Fck= 40 MPa) - preparo em betoneira | D145: m³ | E145: 12.8 | F145: 372.71 | G145: 4770.69 | H145: 372.65 | I145: 4769.92 | J145: -0.0001609830699 | K145: 372.65 | L145: 4769.92
A146: 7.2.6 | B146: 09.04.15 | C146: Forma curva em chapa de madeira compensada resinada, esp. 10 mm, para estruturas | D146: m² | E146: 153.6 | F146: 81 | G146: 12441.6 | H146: 78.62 | I146: 12076.03 | J146: -0.02938271605 | K146: 78.62 | L146: 12076.03
A147: 7.2.7 | B147: 09.03.01 | C147: Lançamento ou bombeamento e adensamento de concreto - altura ou profundidade até 1,50 m | D147: m³ | E147: 12.8 | F147: 93.09 | G147: 1191.55 | H147: 93.05 | I147: 1191.04 | J147: -0.0004296916962 | K147: 93.05 | L147: 1191.04
A148: 7.2.8 | B148: 10.02.01 | C148: Armadura de aço CA 50 e CA 60, colocação | D148: kg | E148: 512 | F148: 1.69 | G148: 865.28 | H148: 0.7 | I148: 358.4 | J148: -0.5857988166 | K148: 0.7 | L148: 358.4
A149: 7.2.9 | B149: 10.02.02 | C149: Armadura de aço CA 50, fornecimento e colocação | D149: kg | E149: 768 | F149: 6.71 | G149: 5153.28 | H149: 6.25 | I149: 4800 | J149: -0.06855439642 | K149: 6.25 | L149: 4800
A150: 7.2.10 | C150: Montagem e fornecimento de calha parshall, W=3" | D150: und | E150: 1 | F150: 1743.77 | G150: 1743.77 | H150: 4526.52 | I150: 4526.52 | J150: 1.595823991 | K150: 1743.77 | L150: 1743.77
A151: 7.2.11 | C151: Montagem de grade em ferro chato 1 1/4" x 1/2" | D151: und | E151: 1 | F151: 436.54 | G151: 436.54 | H151: 331.31 | I151: 331.31 | J151: -0.2410546571 | K151: 331.31 | L151: 331.31
A152: 7.2.12 | C152: Montagem e fornecimento de placa vertedoura em fibra de vidro | D152: und | E152: 1 | F152: 135.24 | G152: 135.24 | H152: 124.49 | I152: =ROUND(E152*H152,2) -> 124.49 | J152: -0.07948831707 | K152: 124.49 | L152: =ROUND(E152*K152,2) -> 124.49
A153: 7.2.13 | B153: 6171 | C153: Tampa em concreto armado 60x60x0,05m p/cx diversas | D153: und | E153: 5 | F153: 15.65 | G153: 78.25 | H153: 15.61 | I153: 78.05 | J153: -0.002555910543 | K153: 15.61 | L153: 78.05
A154: 7.2.14 | B154: 14.02.38 | C154: Calçada em lajota de concreto 50 x 50 x 5 cm assentada com argamassa cimento e areia, inclusive contenção e aterro | D154: m² | E154: 28.8 | F154: 43.78 | G154: 1260.86 | H154: 25.05 | I154: 721.44 | J154: -0.4278209228 | K154: 25.05 | L154: 721.44
A155: 7.2.15 | B155: 16.06.03.01.01 | C155: Assentamento de tubos e conexões de PVC JE DN 50 | D155: m | E155: 8.5 | F155: 1.46 | G155: 12.41 | H155: 1.24 | I155: 10.54 | J155: -0.1506849315 | K155: 1.24 | L155: 10.54
A156: 7.2.16 | B156: 17.02.02.16 | C156: Placa de proteção em concreto armado 1,00 x 2,00 m. | D156: m³ | E156: 213 | F156: 286.27 | G156: 60975.51 | H156: 894.8 | I156: 190592.4 | J156: 2.125720474 | K156: 286.27 | L156: 60975.51
A157: 7.2.17 | B157: 16.06.03.01.06 | C157: Assentamento de tubos e conexões de PVC JE DN 250 | D157: m | E157: 50 | F157: 6.21 | G157: 310.5 | H157: 2.02 | I157: 101 | J157: -0.6747181965 | K157: 2.02 | L157: 101
A158: 7.2.18 | B158: 09.02.06 | C158: Concreto estrutural (Fck= 40 MPa) - preparo em betoneira | D158: m³ | E158: 8.56 | F158: 372.71 | G158: 3190.4 | H158: 372.65 | I158: 3189.88 | J158: -0.0001609830699 | K158: 372.65 | L158: 3189.88
A159: 7.2.19 | B159: 09.04.15 | C159: Forma curva em chapa de madeira compensada resinada, esp. 10 mm, para estruturas | D159: m² | E159: 102.72 | F159: 81 | G159: 8320.32 | H159: 78.62 | I159: 8075.85 | J159: -0.02938271605 | K159: 78.62 | L159: 8075.85
A160: 7.2.20 | B160: 09.03.01 | C160: Lançamento ou bombeamento e adensamento de concreto - altura ou profundidade até 1,50 m | D160: m³ | E160: 8.56 | F160: 93.09 | G160: 796.85 | H160: 93.05 | I160: 796.51 | J160: -0.0004296916962 | K160: 93.05 | L160: 796.51
A161: 7.2.21 | B161: 10.02.01 | C161: Armadura de aço CA 50 e CA 60, colocação | D161: kg | E161: 342.4 | F161: 1.69 | G161: 578.66 | H161: 0.7 | I161: 239.68 | J161: -0.5857988166 | K161: 0.7 | L161: 239.68
A162: 7.2.22 | B162: 10.02.02 | C162: Armadura de aço CA 50, fornecimento e colocação | D162: kg | E162: 513.6 | F162: 6.71 | G162: 3446.26 | H162: 6.25 | I162: 3210 | J162: -0.06855439642 | K162: 6.25 | L162: 3210
A163: 7.2.23 | B163: 16.04.01.08 | C163: Poço de visita altura igual 1,50 m (balão diâmetro igual 1,0 m), em anéis pré-moldado de concreto | D163: und | E163: 6 | F163: 682.75 | G163: 4096.5 | H163: 682.75 | I163: 4096.5 | J163: 0 | K163: 682.75 | L163: 4096.5
A164: 7.3 | C164: URBANIZAÇÃO | G164: 174279.92 | K164: 0 | L164: 0
A165: 7.3.1 | B165: 25.03 | C165: Cerca em mourões de concreto, com fechamento em arame farpado | D165: m | E165: 1500 | F165: 27.99 | G165: 41985 | H165: 39.85 | I165: 59775 | J165: =(H165/F165)-1 -> 0.4237227581 | K165: 27.99 | L165: 41985
A166: 7.3.2 | B166: 25.07 | C166: Portão para veículo | D166: un | E166: 1 | F166: 2209.72 | G166: 2209.72 | H166: 2208.41 | I166: 2208.41 | J166: -0.0005928352913 | K166: 2208.41 | L166: 2208.41
A167: 7.3.3 | B167: 25.08 | C167: Portão para pedestre | D167: un | E167: 1 | F167: 766.71 | G167: 766.71 | H167: 578.27 | I167: 578.27 | J167: -0.2457774126 | K167: 578.27 | L167: 578.27
A168: 7.3.4 | B168: 09.01.02 | C168: Lastro de pedra britada apiloada | D168: m³ | E168: 482 | F168: 99.67 | G168: 48040.94 | H168: 99.63 | I168: 48021.66 | J168: -0.0004013243704 | K168: 99.63 | L168: 48021.66
A169: 7.3.5 | B169: 14.02.25 | C169: Meio-fio reto de concreto (80 X 45 X 18 X 12) cm (Fornecimento e assentamento). | D169: m | E169: 2200 | F169: 27.11 | G169: 59642 | H169: 23.69 | I169: 52118 | J169: -0.1261527112 | K169: 23.69 | L169: 52118
A170: 7.3.6 | B170: 25.01 | C170: Plantio de gramas em placas - urbanização | D170: m² | E170: 1785 | F170: 11.19 | G170: 19974.15 | H170: 11.19 | I170: 19974.15 | J170: 0 | K170: 11.19 | L170: 19974.15
A171: 7.3.7 | B171: 25.09 | C171: Calha pré-moldada de concreto simples DN = 30 cm (Quadra Desc.) | D171: m | E171: 78 | F171: 21.3 | G171: 1661.4 | H171: 21.27 | I171: 1659.06 | J171: -0.001408450704 | K171: 21.27 | L171: 1659.06

Sheet MATERIAL
I4: ANEXO I
A8: SERVIÇO: EXECUÇÃO DAS OBRAS E SERVIÇOS RELATIVOS AO SISTEMA DE ESGOTAMENTO SANITÁRIO DE IPUBÍ, NO ESTADO DE PERNAMBUCO
A9: ANÁLISE FINANCEIRA DA PROPOSTA DA EMPRESA CONSTRUTORA LUCAIA LTDA. DO LOTE 2, EDITAL 98/2008
A10: LOCAL: MUNICÍPIO DE IPUBÍ, NO ESTADO DE PERNAMBUCO
J11: VARIAÇAO % DOS PREÇOS UNITÁRIOS
A12: ITEM | B12: COD | C12: MATERIAIS | D12: UNID. | E12: QUANT. | F12: PREÇO (R$) | H12: PROPOSTA ORIGINAL | K12: APÓS READEQUAÇAO
F13: UNITÁRIO | G13: TOTAL | H13: UNITÁRIO | I13: TOTAL | K13: UNITÁRIO | L13: TOTAL
A14: 1 | C14: Acerto e verificação do nivelamento da cava | D14: m³ | E14: 114.4 | F14: 3.07 | G14: 351.21 | H14: 3.13 | I14: =ROUND(E14*H14,2) -> 358.07 | J14: =(H14/F14)-1 -> 0.01954397394 | K14: =IF(J14>0,F14,H14) -> 3.07 | L14: =ROUND(E14*K14,2) -> 351.21
A15: 2 | C15: Adaptador PVC PBA a bolsa de FoFo JE DN 100 / DE 110 mm | D15: und | E15: 1 | F15: 65.73 | G15: 65.73 | H15: 74.75 | I15: =ROUND(E15*H15,2) -> 74.75 | J15: =(H15/F15)-1 -> 0.1372280542 | K15: =IF(J15>0,F15,H15) -> 65.73 | L15: =ROUND(E15*K15,2) -> 65.73
A16: 3 | C16: Anel borracha p/Tubo PVC Rede Esgoto EB 644 DN 100 mm | D16: und | E16: 5655 | F16: 2.12 | G16: 11988.6 | H16: 2.12 | I16: 11988.6 | J16: 0 | K16: 2.12 | L16: 11988.6
A17: 4 | C17: Anel borracha p/Tubo PVC Rede Esgoto EB 644 DN 150 mm | D17: und | E17: 2721 | F17: 5.19 | G17: 14121.99 | H17: 5.76 | I17: 15672.96 | J17: 0.1098265896 | K17: 5.19 | L17: 14121.99
A18: 5 | C18: Anel borracha p/Tubo PVC Rede Esgoto EB 644 DN 200 mm | D18: und | E18: 163 | F18: 7.7 | G18: 1255.1 | H18: 7.71 | I18: 1256.73 | J18: 0.001298701299 | K18: 7.7 | L18: 1255.1
A19: 6 | C19: Anel borracha p/Tubo PVC Rede Esgoto EB 644 DN 250 mm | D19: und | E19: 167 | F19: 12.51 | G19: 2089.17 | H19: 12.51 | I19: 2089.17 | J19: 0 | K19: 12.51 | L19: 2089.17
A20: 7 | C20: Arruela borracha p/flange PN-10 DN 50 mm | D20: und | E20: 3 | F20: 15.04 | G20: 45.12 | H20: 1.15 | I20: 3.45 | J20: -0.923537234 | K20: 1.15 | L20: 3.45
A21: 8 | C21: Arruela borracha p/flanges PN-10 DN 100 mm | D21: und | E21: 21 | F21: 26.68 | G21: 560.28 | H21: 2.19 | I21: 45.99 | J21: -0.917916042 | K21: 2.19 | L21: 45.99
A22: 9 | C22: Assentamento de tubos e conexões de PVC JE DN 100 | D22: m | E22: 572 | F22: 1.68 | G22: 960.96 | H22: 1.31 | I22: 749.32 | J22: -0.2202380952 | K22: 1.31 | L22: 749.32
A23: 10 | C23: Aterro de valas e cavas de fundação, c/ avaliação visual da compactação | D23: m³ | E23: 233.29 | F23: 8.72 | G23: 2034.29 | H23: 14.05 | I23: 3277.72 | J23: 0.6112385321 | K23: 8.72 | L23: 2034.29
A24: 11 | C24: Aterro manual compactado c/material importado | D24: m³ | E24: 171.6 | F24: 56.93 | G24: 9769.19 | H24: 17.17 | I24: 2946.37 | J24: -0.6984015458 | K24: 17.17 | L24: 2946.37
A25: 12 | C25: Automatico de boia inferior 10A/250V | D25: cj | E25: 1 | F25: 33.8 | G25: 33.8 | H25: 33.8 | I25: 33.8 | J25: 0 | K25: 33.8 | L25: 33.8
A26: 13 | C26: Automatico de boia superior 10A/250V | D26: und | E26: 1 | F26: 30.62 | G26: 30.62 | H26: 30.62 | I26: 30.62 | J26: 0 | K26: 30.62 | L26: 30.62
A27: 14 | C27: Cadastro de interceptor e/ou emissário | D27: m | E27: 572 | F27: 0.55 | G27: 314.6 | H27: 0.63 | I27: 360.36 | J27: 0.1454545455 | K27: 0.55 | L27: 314.6
A28: 15 | C28: Caixa de alvenaria para esgotamento e proteção de aparelhos de reservatórios, nas dimensões (1,60 X 1,20) m - altura igual 1,00 m, inclusíve grade metálica | D28: und | E28: 1 | F28: 799.32 | G28: 799.32 | H28: 799.32 | I28: 799.32 | J28: 0 | K28: 799.32 | L28: 799.32
A29: 16 | C29: Carga manual de terra em caminhão basculante | D29: m³ | E29: 338.71 | F29: 3.81 | G29: 1290.49 | H29: 3.81 | I29: 1290.49 | J29: 0 | K29: 3.81 | L29: 1290.49
A30: 17 | C30: Comporta quadrada FoFo sentido único fluxo c/ chumbadores diagonal 300 | D30: und | E30: 1 | F30: 3306.03 | G30: 3306.03 | H30: 3450 | I30: 3450 | J30: 0.0435476992 | K30: 3306.03 | L30: 3306.03
A31: 18 | C31: Conjunto motor-bomba re-autoescorvante para esgoto com as seguintes características: Q = 241,2 m3/h, H = 5,00 mca e P = 10 cv | D31: und | E31: 2 | F31: 18202.83 | G31: 36405.66 | H31: 18202.83 | I31: 36405.66 | J31: 0 | K31: 18202.83 | L31: 36405.66
A32: 19 | C32: Curva FoFo 90 FF DN 50 PN10 | D32: und | E32: 1 | F32: 72.16 | G32: 72.16 | H32: 109.25 | I32: 109.25 | J32: 0.5139966741 | K32: 72.16 | L32: 72.16
A33: 20 | C33: Curva FoFo 90 GR c/bolsas JGS DN 100 inclusive anel borracha | D33: und | E33: 2 | F33: 142.78 | G33: 285.56 | H33: 142.78 | I33: 285.56 | J33: 0 | K33: 142.78 | L33: 285.56
A34: 21 | C34: Curva FoFo 90G c/flanges PN-10/16 DN 100 mm | D34: und | E34: 2 | F34: 138.32 | G34: 276.64 | H34: 195.5 | I34: 391 | J34: 0.4133892423 | K34: 138.32 | L34: 276.64
A35: 22 | C35: Curva PVC 45G NBR 10569 p/Rede Colet. Esg. PB JE DN 100mm | D35: und | E35: 2700 | F35: 20.37 | G35: 54999 | H35: 23.82 | I35: 64314 | J35: 0.1693667158 | K35: 20.37 | L35: 54999
A36: 23 | C36: Curva PVC Leve 45G c/Ponta e Bolsa Lisa DN 150 mm | D36: und | E36: 30 | F36: 59.84 | G36: 1795.2 | H36: 43.3 | I36: 1299 | J36: -0.2764037433 | K36: 43.3 | L36: 1299
A37: 24 | C37: Curva PVC Leve 90G c/Ponta e Bolsa Lisa DN 150 mm | D37: und | E37: 30 | F37: 73.95 | G37: 2218.5 | H37: 54.05 | I37: 1621.5 | J37: -0.2691007437 | K37: 54.05 | L37: 1621.5
A38: 25 | C38: Curva PVC PBA NBR 10531 p/Rede água JE PB 90G DN 100/DE110 mm | D38: und | E38: 4 | F38: 86.27 | G38: 345.08 | H38: 86.27 | I38: 345.08 | J38: 0 | K38: 86.27 | L38: 345.08
A39: 26 | C39: Energização da elevatória abrangendo quadro de medição, chaves de partida com soft-start, subestação aérea de 15kva, todos os cabos e conectores necessários ao perfeito funcionamento das bombas | D39: und | E39: 1 | F39: 43063.77 | G39: 43063.77 | H39: 43063.77 | I39: 43063.77 | J39: 0 | K39: 43063.77 | L39: 43063.77
A40: 27 | C40: Escada tipo marinheiro, degraus em ferro redondo, diâmetro 3/4" | D40: m | E40: 2 | F40: 56.11 | G40: 112.22 | H40: 552 | I40: 1104 | J40: 8.837818571 | K40: 56.11 | L40: 112.22
A41: 28 | C41: Escavação e carga mecânica de valas, rocha branda, à frio | D41: m³ | E41: 171.6 | F41: 103.49 | G41: 17758.88 | H41: 64.39 | I41: 11049.32 | J41: -0.3778142816 | K41: 64.39 | L41: 11049.32
A42: 29 | C42: Escavação manual de valas em solo seco profundidade até 1,50m | D42: m³ | E42: 286 | F42: 19.03 | G42: 5442.58 | H42: 29.84 | I42: 8534.24 | J42: 0.5680504467 | K42: 19.03 | L42: 5442.58
A43: 30 | C43: Escavação manual em solo profundidade até 1,50 m | D43: m³ | E43: 114.4 | F43: 12.69 | G43: 1451.74 | H43: 29.84 | I43: 3413.7 | J43: 1.351457841 | K43: 12.69 | L43: 1451.74
A44: 31 | C44: Extremidade FoFo flange e ponta p/JE/JM PN-10/16 DN 100 mm | D44: und | E44: 4 | F44: 112.96 | G44: 451.84 | H44: 172.5 | I44: 690 | J44: 0.5270892351 | K44: 112.96 | L44: 451.84
A45: 32 | C45: Grade de ferro de barra chata 2"x3/8" conforme projeto | D45: m² | E45: 0.7 | F45: 528 | G45: 369.6 | H45: 528 | I45: 369.6 | J45: 0 | K45: 528 | L45: 369.6
A46: 33 | C46: Grelha de proteção de 110 x 1120 mm conf. projeto | D46: und | E46: 2 | F46: 345 | G46: 690 | H46: 345 | I46: 690 | J46: 0 | K46: 345 | L46: 690
A47: 34 | C47: Haste prolongamento FoFo c/roscas L=1,0 m D = 1 1/8 | D47: und | E47: 1 | F47: 1261 | G47: 1261 | H47: 1261 | I47: 1261 | J47: 0 | K47: 1261 | L47: 1261
A48: 35 | C48: Junção PVC 45G NBR 10569 p/Rede Colet. Esg. JE BBB DN 150 mm | D48: und | E48: 30 | F48: 34.64 | G48: 1039.2 | H48: 58.65 | I48: 1759.5 | J48: 0.6931293303 | K48: 34.64 | L48: 1039.2
A49: 36 | C49: Junta GIBAULT, FoFo, DN 100 mm | D49: und | E49: 2 | F49: 92.92 | G49: 185.84 | H49: 97.75 | I49: 195.5 | J49: 0.05198019802 | K49: 92.92 | L49: 185.84
A50: 37 | C50: Lastro de areia | D50: m³ | E50: 167.11 | F50: 74.28 | G50: 12412.93 | H50: 17.17 | I50: 2869.28 | J50: -0.7688476037 | K50: 17.17 | L50: 2869.28
A51: 38 | C51: Locação de rede e elaboração de nota serviço, inclusive levantamento de normais - para obras | D51: m | E51: 572 | F51: 2.21 | G51: 1264.12 | H51: 0.43 | I51: 245.96 | J51: -0.8054298643 | K51: 0.43 | L51: 245.96
A52: 39 | C52: Luva Correr PVC JE NBR 10569 p/Rede Colet. Esg. DN 15 mm | D52: und | E52: 30 | F52: 34.49 | G52: 1034.7 | H52: 34.49 | I52: 1034.7 | J52: 0 | K52: 34.49 | L52: 1034.7
A53: 40 | C53: Parafusos c/porca p/flanges 16x80 mm PN-10/16 DN 50 a 100 PN-25 DN 50 x 80 | D53: und | E53: 348 | F53: 3.52 | G53: 1224.96 | H53: 3.52 | I53: 1224.96 | J53: 0 | K53: 3.52 | L53: 1224.96
A54: 41 | C54: Pedestal de suspensão simples FoFo mod. 01 p/comporta quadrada/circular único 200 a 600 | D54: und | E54: 1 | F54: 2519.06 | G54: 2519.06 | H54: 2519.06 | I54: 2519.06 | J54: 0 | K54: 2519.06 | L54: 2519.06
A55: 42 | C55: Quadro 160 60 cm Padrão LIGHT TR-4 | D55: und | E55: 1 | F55: 99.92 | G55: 99.92 | H55: 99.92 | I55: 99.92 | J55: 0 | K55: 99.92 | L55: 99.92
A56: 43 | C56: Quadro de comando e proteção das bombas | D56: und | E56: 2 | F56: 2250 | G56: 4500 | H56: 2250 | I56: 4500 | J56: 0 | K56: 2250 | L56: 4500
A57: 44 | C57: Recomposição de pavimento em paralelepípedo, com reaproveitamento do material demolido, exclusive base com pequena perda inclusa | D57: m² | E57: 858 | F57: 11.54 | G57: 9901.32 | H57: 7.15 | I57: 6134.7 | J57: -0.3804159445 | K57: 7.15 | L57: 6134.7
A58: 45 | C58: Redução concentrica c/flanges FoFo PN-10/16 DN 100 X 50 | D58: und | E58: 1 | F58: 149.35 | G58: 149.35 | H58: 172.5 | I58: 172.5 | J58: 0.1550050218 | K58: 149.35 | L58: 149.35
A59: 46 | C59: Remoção de pavimento em paralelepípedo, poliédrico e pré-moldado | D59: m² | E59: 858 | F59: 5.36 | G59: 4598.88 | H59: 5.73 | I59: 4916.34 | J59: 0.06902985075 | K59: 5.36 | L59: 4598.88
A60: 47 | C60: Selim PVC 90G c/Travas NBR 10569p/Rede Colet. Esg. DN 150x100 mm | D60: und | E60: 1350 | F60: 17.92 | G60: 24192 | H60: 27.12 | I60: 36612 | J60: 0.5133928571 | K60: 17.92 | L60: 24192
A61: 48 | C61: Selim PVC 90G c/Travas NBR 10569p/Rede Colet. Esg. DN 200x100 mm | D61: und | E61: 21 | F61: 29.62 | G61: 622.02 | H61: 41.4 | I61: 869.4 | J61: 0.3977042539 | K61: 29.62 | L61: 622.02
A62: 49 | C62: Tampa em chapa de aço carbono conforme desenho p/poço de bombeamento | D62: und | E62: 2 | F62: 520 | G62: 1040 | H62: 520 | I62: 1040 | J62: 0 | K62: 520 | L62: 1040
A63: 50 | C63: Tampão de FºFº Dúctil, DN 600mm, CL-300 | D63: und | E63: 2 | F63: 323.84 | G63: 647.68 | H63: 323.84 | I63: 647.68 | J63: 0 | K63: 323.84 | L63: 647.68
A64: 51 | C64: Tampão FºFº 57 kg Carga Max. 12.500kg Diam. Abert. 600 mm, p/Poço Visita de Rede Pluvial, Esgoto, etc. em via de Tráfego Leve | D64: und | E64: 290 | F64: 323.84 | G64: 93913.6 | H64: 323.84 | I64: 93913.6 | J64: 0 | K64: 323.84 | L64: 93913.6
A65: 52 | C65: Te FoFo sanitário 87 GR DN 100x100 mm incl. Anel borracha LH predial tradicional p/instalação esgoto predial | D65: und | E65: 1 | F65: 85.8 | G65: 85.8 | H65: 115 | I65: 115 | J65: 0.3403263403 | K65: 85.8 | L65: 85.8
A66: 53 | C66: Toco c/flanges e aba de vedação, FoFo PN-10/16 DN 100 mm L=0,70 m | D66: und | E66: 2 | F66: 666.09 | G66: 1332.18 | H66: 666.09 | I66: 1332.18 | J66: 0 | K66: 666.09 | L66: 1332.18
A67: 54 | C67: Toco c/flanges FoFo PN-10/16/25 L=0,25 m DN 50 | D67: und | E67: 2 | F67: 289.77 | G67: 579.54 | H67: 289.77 | I67: 579.54 | J67: 0 | K67: 289.77 | L67: 579.54
A68: 55 | C68: Toco c/flanges, FoFo PN-10/16 l=0,25m DN 100 mm | D68: und | E68: 4 | F68: 431.54 | G68: 1726.16 | H68: 431.54 | I68: 1726.16 | J68: 0 | K68: 431.54 | L68: 1726.16
A69: 56 | C69: Toco FoFo c/flanges DN 50 mm PN 10 L=500mm | D69: und | E69: 1 | F69: 385.14 | G69: 385.14 | H69: 385.14 | I69: 385.14 | J69: 0 | K69: 385.14 | L69: 385.14
A70: 57 | C70: Transporte local de material de jazida DMT = 5,0 km | D70: m³ | E70: 338.71 | F70: 7.03 | G70: 2381.13 | H70: 7.03 | I70: 2381.13 | J70: 0 | K70: 7.03 | L70: 2381.13
A71: 58 | C71: Tubo FoFo c/flange e ponta TFP PN-10/16 DN 100 mm | D71: und | E71: 2 | F71: 287.35 | G71: 574.7 | H71: 1557.1 | I71: 3114.2 | J71: 4.418827214 | K71: 287.35 | L71: 574.7
A72: 59 | C72: Tubo FoFo c/flanges DN 50 PN10 - L=2000 | D72: und | E72: 1 | F72: 1155 | G72: 1155 | H72: 1155 | I72: 1155 | J72: 0 | K72: 1155 | L72: 1155
A73: 60 | C73: Tubo FoFo c/flanges TEL PN-10/16 DN 100 mm L = 1,00 m | D73: und | E73: 2 | F73: 341.13 | G73: 682.26 | H73: 341.12 | I73: 682.24 | J73: -2.931433764e-05 | K73: 341.12 | L73: 682.24
A74: 61 | C74: Tubo FoFo c/ponta e bolsa DN 100 linha HL incl anel borracha p/esgoto predial L = 3,54 m | D74: und | E74: 1 | F74: 646.23 | G74: 646.23 | H74: 646.23 | I74: 646.23 | J74: 0 | K74: 646.23 | L74: 646.23
A75: 62 | C75: Tubo FoFo c/ponta e bolsa DN 100 linha HL incl anel borracha p/esgoto predial Lm =3,65 m | D75: und | E75: 1 | F75: 666.31 | G75: 666.31 | H75: 666.31 | I75: 666.31 | J75: 0 | K75: 666.31 | L75: 666.31
A76: 63 | C76: Tubo FoFo c/pontas DN 100 mm linha HL p/esgoto predial | D76: m | E76: 1 | F76: 199.96 | G76: 199.96 | H76: 199.96 | I76: 199.96 | J76: 0 | K76: 199.96 | L76: 199.96
A77: 64 | C77: Tubo FoFo c/pontas DN 100 mm linha HL p/esgoto predial l = 1,40 m | D77: und | E77: 1 | F77: 234.24 | G77: 234.24 | H77: 234.24 | I77: 234.24 | J77: 0 | K77: 234.24 | L77: 234.24
A78: 65 | C78: Tubo FoFo c/pontas DN 100 mm linha HL p/esgoto predial | D78: m | E78: 1 | F78: 199.96 | G78: 199.96 | H78: 199.96 | I78: 199.96 | J78: 0 | K78: 199.96 | L78: 199.96
A79: 66 | C79: Tubo PVC DEFOFO EB-1208 p/Rede água JE 1 MPa DN 250 mm | D79: m | E79: 1002 | F79: 135.95 | G79: 136221.9 | H79: 145.88 | I79: =ROUND(E79*H79,2) -> 146171.76 | J79: =(H79/F79)-1 -> 0.0730415594 | K79: =IF(J79>0,F79,H79) -> 135.95 | L79: =ROUND(E79*K79,2) -> 136221.9
A80: 67 | C80: Tubo PVC EB 644 p/Rede Colet. Esg. JE DN 100 mm | D80: m | E80: 33930 | F80: 12.38 | G80: 420053.4 | H80: 5.75 | I80: 195097.5 | J80: -0.5355411955 | K80: 5.75 | L80: 195097.5
A81: 68 | C81: Tubo PVC EB 644 p/Rede Colet. Esg. JE DN 150 mm | D81: m | E81: 16326 | F81: 23.55 | G81: 384477.3 | H81: 31.6 | I81: 515901.6 | J81: 0.3418259023 | K81: 23.55 | L81: 384477.3
A82: 69 | C82: Tubo PVC EB 644 p/Rede Colet. Esg. JE DN 200 mm | D82: m | E82: 984 | F82: 36.41 | G82: 35827.44 | H82: 53.66 | I82: 52801.44 | J82: 0.473770942 | K82: 36.41 | L82: 35827.44
A83: 70 | C83: Tubo PVC PBA 12 JE NBR 5647 p/Rede água DN 100/DE 110 mm | D83: m | E83: 600 | F83: 23.74 | G83: 14244 | H83: 23.74 | I83: 14244 | J83: 0 | K83: 23.74 | L83: 14244
A84: 71 | C84: Válvula gaveta c/ bolças c/cunha borracha PN-10 c/cabeçote haste inox DN 100 | D84: und | E84: 1 | F84: 769.23 | G84: 769.23 | H84: 769.24 | I84: 769.24 | J84: 1.3000013e-05 | K84: 769.23 | L84: 769.23
A85: 72 | C85: Válvula gaveta c/flanges c/cunha borracha corpo curto PN-10 c/cabeçote haste inox DN 100 | D85: und | E85: 2 | F85: 743.94 | G85: 1487.88 | H85: 793.5 | I85: 1587 | J85: 0.06661827567 | K85: 743.94 | L85: 1487.88
A86: 73 | C86: Valvula retenção FoFo BY PASS PN-10/16 portinhola única DN 100 mm | D86: und | E86: 2 | F86: 782.59 | G86: 1565.18 | H86: 1035 | I86: 2070 | J86: 0.3225315938 | K86: 782.59 | L86: 1565.18
C87: TOTAL GERAL MATERIAIS | G87: 1380856.45 | I87: =SUM(I14:I86) -> 1320189.33 | L87: =SUM(L14:L86) -> 1126178.92
C89: TOTAL GERAL SERVIÇOS | G89: 11198139.17 | I89: ='[1]Serviços '!I10 -> 7491751.31 | L89: ='[1]Serviços '!L10 -> 5704684.1 | N89: OTL | O89: CASSI | P89: SCAVE | Q89: DORNELAS | R89: MÉDIA
C90: TOTAL GERAL DA OBRA | G90: 12578995.62 | I90: =I87+I89 -> 8811940.64 | L90: =L87+L89 -> 6830863.02 | N90: 9607000 | O90: 10196753.49 | P90: 10561059.02 | Q90: 11935594.58 | R90: =AVERAGE(L90:Q90) -> 9826254.022
R91: =R90*0.7 -> 6878377.815
L92: =L90/G90 -> 0.5430372365
G93: =G90*0.7 -> 8805296.934
N95: OTL | O95: CASSI | P95: SCAVE | Q95: DORNELAS | R95: MÉDIA
M96: =I90 -> 8811940.64 | N96: 9607000 | O96: 10196753.49 | P96: 10561059.02 | Q96: 11935594.58 | R96: =AVERAGE(L96:Q96) -> 10222469.55
R97: =R96*0.7 -> 7155728.682

Sheet Plan3
